[Event "Titled Tuesday Blitz May 24 Late 2022"]
[White "Grischuk, Alexander"]
[Black "Zhigalko, Sergei"]
[WhiteFideId "4126025"]
[BlackFideId "13502956"]
[WhiteElo "2762"]
[BlackElo "2662"]
[Result "1-0"]
[Round "11"]
[TimeControl "180+1"]
[Date "2022.05.24"]
[WhiteClock "0:00:05"]
[BlackClock "0:00:02"]

1. d4 {[%clk 0:03:00]}  Nf6 {[%clk 0:03:00]} 2. c4 {[%clk 0:03:01]}  e6 {[%clk 0:03:00]} 3. Nc3 {[%clk 0:03:01]}  Bb4 {[%clk 0:03:00]} 4. e3 {[%clk 0:03:01]}  O-O {[%clk 0:03:00]} 5. Bd3 {[%clk 0:03:01]}  d5 {[%clk 0:03:00]} 6. a3 {[%clk 0:03:01]}  Bxc3+ {[%clk 0:02:48]} 7. bxc3 {[%clk 0:03:02]}  c5 {[%clk 0:02:43]} 8. cxd5 {[%clk 0:03:02]}  exd5 {[%clk 0:02:18]} 9. Ne2 {[%clk 0:03:02]}  Re8 {[%clk 0:02:16]} 10. O-O {[%clk 0:03:01]}  Bg4 {[%clk 0:02:03]} 11. f3 {[%clk 0:02:59]}  Bh5 {[%clk 0:02:03]} 12. Nf4 {[%clk 0:02:33]}  Bg6 {[%clk 0:02:02]} 13. Nxg6 {[%clk 0:02:33]}  hxg6 {[%clk 0:02:03]} 14. Ra2 {[%clk 0:02:32]}  Nc6 {[%clk 0:02:02]} 15. g4 {[%clk 0:02:31]}  Rc8 {[%clk 0:01:59]} 16. Rg2 {[%clk 0:02:26]}  Qa5 {[%clk 0:01:57]} 17. Qd2 {[%clk 0:02:11]}  Qc7 {[%clk 0:01:39]} 18. h4 {[%clk 0:01:52]}  Na5 {[%clk 0:01:39]} 19. Qd1 {[%clk 0:01:52]}  cxd4 {[%clk 0:01:25]} 20. cxd4 {[%clk 0:01:53]}  Nc4 {[%clk 0:01:25]} 21. Re1 {[%clk 0:01:52]}  b5 {[%clk 0:01:18]} 22. h5 {[%clk 0:01:50]}  gxh5 {[%clk 0:00:54]} 23. g5 {[%clk 0:01:50]}  Nh7 {[%clk 0:00:37]} 24. g6 {[%clk 0:01:49]}  Nf8 {[%clk 0:00:31]} 25. gxf7+ {[%clk 0:01:35]}  Qxf7 {[%clk 0:00:32]} 26. Kh1 {[%clk 0:01:07]}  Rc6 {[%clk 0:00:22]} 27. e4 {[%clk 0:00:57]}  Rg6 {[%clk 0:00:17]} 28. Reg1 {[%clk 0:00:51]}  Rxg2 {[%clk 0:00:12]} 29. Rxg2 {[%clk 0:00:52]}  Ne6 {[%clk 0:00:11]} 30. e5 {[%clk 0:00:15]}  Nf4 {[%clk 0:00:09]} 31. Rg5 {[%clk 0:00:13]}  Nxd3 {[%clk 0:00:05]} 32. Qxd3 {[%clk 0:00:14]}  Rf8 {[%clk 0:00:05]} 33. f4 {[%clk 0:00:14]}  Qe7 {[%clk 0:00:02]} 34. f5 {[%clk 0:00:13]}  Rf7 {[%clk 0:00:02]} 35. f6 {[%clk 0:00:12]}  Qe6 {[%clk 0:00:02]} 36. Qg3 {[%clk 0:00:12]}  Kf8 {[%clk 0:00:02]} 37. Rxg7 {[%clk 0:00:11]}  Ke8 {[%clk 0:00:02]} 38. Rxf7 {[%clk 0:00:07]}  Kxf7 {[%clk 0:00:02]} 39. Qg7+ {[%clk 0:00:06]}  Ke8 {[%clk 0:00:02]} 40. Qg6+ {[%clk 0:00:05]}  Qf7 {[%clk 0:00:02]} 41. Qf5 {[%clk 0:00:05]} 1-0


[Site "https://www.chess.com"]

[Event "Titled Tuesday Blitz May 24 Late 2022"]
[White "Haas, Michael"]
[Black "Sibilio, Mario"]
[WhiteFideId "1629514"]
[BlackFideId "800422"]
[WhiteElo "1982"]
[BlackElo "2296"]
[Result "1-0"]
[Round "11"]
[TimeControl "180+1"]
[Date "2022.05.25"]
[WhiteClock "0:00:01"]
[BlackClock "0:00:01"]

1. d4 {[%clk 0:02:58]}  d5 {[%clk 0:02:52]} 2. c4 {[%clk 0:02:58]}  Nc6 {[%clk 0:02:51]} 3. cxd5 {[%clk 0:02:38]}  Qxd5 {[%clk 0:02:50]} 4. e3 {[%clk 0:02:37]}  e5 {[%clk 0:02:50]} 5. Nc3 {[%clk 0:02:36]}  Bb4 {[%clk 0:02:49]} 6. a3 {[%clk 0:02:36]}  Bxc3+ {[%clk 0:02:48]} 7. bxc3 {[%clk 0:02:37]}  exd4 {[%clk 0:02:48]} 8. cxd4 {[%clk 0:02:05]}  Bf5 {[%clk 0:02:45]} 9. Nf3 {[%clk 0:02:05]}  Nge7 {[%clk 0:02:28]} 10. Bd3 {[%clk 0:02:01]}  Bxd3 {[%clk 0:02:04]} 11. Qxd3 {[%clk 0:02:01]}  f5 {[%clk 0:02:03]} 12. O-O {[%clk 0:01:55]}  O-O {[%clk 0:01:55]} 13. Rb1 {[%clk 0:01:47]}  b6 {[%clk 0:01:50]} 14. Bb2 {[%clk 0:01:34]}  Na5 {[%clk 0:01:40]} 15. Rbc1 {[%clk 0:01:27]}  c6 {[%clk 0:01:39]} 16. Ne5 {[%clk 0:01:18]}  Ng6 {[%clk 0:01:21]} 17. Nxg6 {[%clk 0:01:01]}  hxg6 {[%clk 0:01:19]} 18. Bc3 {[%clk 0:00:56]}  Nb7 {[%clk 0:01:01]} 19. Qc2 {[%clk 0:00:44]}  Rf6 {[%clk 0:00:47]} 20. Qb2 {[%clk 0:00:31]}  Re8 {[%clk 0:00:45]} 21. Rfd1 {[%clk 0:00:26]}  f4 {[%clk 0:00:41]} 22. Bd2 {[%clk 0:00:23]}  f3 {[%clk 0:00:35]} 23. Bb4 {[%clk 0:00:08]}  Re4 {[%clk 0:00:23]} 24. Qc2 {[%clk 0:00:05]}  fxg2 {[%clk 0:00:17]} 25. Qc4 {[%clk 0:00:03]}  Nd6 {[%clk 0:00:09]} 26. Qxd5+ {[%clk 0:00:03]}  cxd5 {[%clk 0:00:09]} 27. Rc7 {[%clk 0:00:03]}  a5 {[%clk 0:00:07]} 28. Bxd6 {[%clk 0:00:03]}  Rxd6 {[%clk 0:00:06]} 29. Rdc1 {[%clk 0:00:03]}  b5 {[%clk 0:00:02]} 30. Rc8+ {[%clk 0:00:01]}  Kf7 {[%clk 0:00:01]} 31. R1c5 {[%clk 0:00:01]} 1-0


[Site "https://www.chess.com"]

[Event "Titled Tuesday Blitz May 24 Late 2022"]
[White "Hasangatin, Ramil"]
[Black "Bernal Moro, Luis Javier"]
[WhiteFideId "4122160"]
[BlackFideId "2200236"]
[WhiteElo "2399"]
[BlackElo "2373"]
[Result "1-0"]
[Round "11"]
[TimeControl "180+1"]
[Date "2022.05.24"]
[WhiteClock "0:01:17"]
[BlackClock "0:00:02"]

1. e4 {[%clk 0:03:00]}  c5 {[%clk 0:02:56]} 2. Nf3 {[%clk 0:02:59]}  e6 {[%clk 0:02:54]} 3. g3 {[%clk 0:02:59]}  Nc6 {[%clk 0:02:53]} 4. Bg2 {[%clk 0:02:59]}  Nf6 {[%clk 0:02:53]} 5. d3 {[%clk 0:02:59]}  Be7 {[%clk 0:02:50]} 6. O-O {[%clk 0:02:58]}  O-O {[%clk 0:02:49]} 7. Re1 {[%clk 0:02:56]}  e5 {[%clk 0:02:48]} 8. c3 {[%clk 0:02:55]}  Re8 {[%clk 0:02:29]} 9. d4 {[%clk 0:02:54]}  cxd4 {[%clk 0:02:28]} 10. cxd4 {[%clk 0:02:55]}  exd4 {[%clk 0:01:38]} 11. Nxd4 {[%clk 0:02:56]}  Bb4 {[%clk 0:01:25]} 12. Nc3 {[%clk 0:02:51]}  d5 {[%clk 0:01:21]} 13. Nxc6 {[%clk 0:02:27]}  bxc6 {[%clk 0:01:21]} 14. exd5 {[%clk 0:02:26]}  Rxe1+ {[%clk 0:01:19]} 15. Qxe1 {[%clk 0:02:26]}  cxd5 {[%clk 0:00:59]} 16. Bd2 {[%clk 0:02:26]}  Be6 {[%clk 0:00:32]} 17. Nxd5 {[%clk 0:02:23]}  Bxd5 {[%clk 0:00:27]} 18. Bxb4 {[%clk 0:02:21]}  Bxg2 {[%clk 0:00:27]} 19. Kxg2 {[%clk 0:02:20]}  Qd5+ {[%clk 0:00:27]} 20. Kg1 {[%clk 0:02:20]}  Re8 {[%clk 0:00:27]} 21. Qd2 {[%clk 0:02:17]}  Qh5 {[%clk 0:00:24]} 22. Re1 {[%clk 0:02:09]}  Rxe1+ {[%clk 0:00:18]} 23. Qxe1 {[%clk 0:02:08]}  h6 {[%clk 0:00:17]} 24. Bc3 {[%clk 0:02:06]}  Qd5 {[%clk 0:00:14]} 25. Qe5 {[%clk 0:01:57]}  Qd1+ {[%clk 0:00:12]} 26. Kg2 {[%clk 0:01:58]}  Kh7 {[%clk 0:00:10]} 27. Qf5+ {[%clk 0:01:56]}  Kg8 {[%clk 0:00:09]} 28. a3 {[%clk 0:01:52]}  Qd6 {[%clk 0:00:08]} 29. Bxf6 {[%clk 0:01:46]}  gxf6 {[%clk 0:00:07]} 30. Qe4 {[%clk 0:01:42]}  Qb6 {[%clk 0:00:07]} 31. b4 {[%clk 0:01:41]}  Kg7 {[%clk 0:00:06]} 32. a4 {[%clk 0:01:41]}  a6 {[%clk 0:00:04]} 33. h4 {[%clk 0:01:38]}  Kf8 {[%clk 0:00:04]} 34. Qc4 {[%clk 0:01:31]}  Ke7 {[%clk 0:00:03]} 35. Kf3 {[%clk 0:01:27]}  Qd6 {[%clk 0:00:03]} 36. Ke3 {[%clk 0:01:25]}  Qb6+ {[%clk 0:00:01]} 37. Qc5+ {[%clk 0:01:24]}  Qxc5+ {[%clk 0:00:01]} 38. bxc5 {[%clk 0:01:25]}  Kd7 {[%clk 0:00:02]} 39. Kd4 {[%clk 0:01:24]}  Kc6 {[%clk 0:00:02]} 40. g4 {[%clk 0:01:17]}  a5 {[%clk 0:00:02]} 41. Kc4 {[%clk 0:01:17]} 1-0


[Site "https://www.chess.com"]

[Event "Titled Tuesday Blitz May 24 Late 2022"]
[White "Huber, Benedikt"]
[Black "Dobre, Claudiu-Cristian"]
[WhiteFideId "12923583"]
[BlackFideId "1211854"]
[WhiteElo "1979"]
[BlackElo "2207"]
[Result "1-0"]
[Round "11"]
[TimeControl "180+1"]
[Date "2022.05.25"]
[WhiteClock "0:00:08"]
[BlackClock "0:00:11"]

1. d4 {[%clk 0:02:46]}  d5 {[%clk 0:02:58]} 2. Bf4 {[%clk 0:02:46]}  Nf6 {[%clk 0:02:57]} 3. e3 {[%clk 0:02:46]}  e6 {[%clk 0:02:57]} 4. Nf3 {[%clk 0:02:43]}  c5 {[%clk 0:02:58]} 5. c3 {[%clk 0:02:42]}  Nc6 {[%clk 0:02:58]} 6. Nbd2 {[%clk 0:02:42]}  Bd6 {[%clk 0:02:57]} 7. Bg3 {[%clk 0:02:42]}  b6 {[%clk 0:02:55]} 8. Bd3 {[%clk 0:02:42]}  cxd4 {[%clk 0:02:52]} 9. exd4 {[%clk 0:02:41]}  O-O {[%clk 0:02:52]} 10. Qe2 {[%clk 0:02:40]}  Qc7 {[%clk 0:02:48]} 11. O-O {[%clk 0:02:23]}  Bxg3 {[%clk 0:02:33]} 12. hxg3 {[%clk 0:02:24]}  Re8 {[%clk 0:02:25]} 13. Rfe1 {[%clk 0:02:24]}  a5 {[%clk 0:02:08]} 14. Ne5 {[%clk 0:02:19]}  Nxe5 {[%clk 0:02:03]} 15. dxe5 {[%clk 0:02:20]}  Nd7 {[%clk 0:02:03]} 16. Qh5 {[%clk 0:02:14]}  g6 {[%clk 0:01:48]} 17. Qg5 {[%clk 0:01:57]}  Ba6 {[%clk 0:01:47]} 18. Bxa6 {[%clk 0:01:53]}  Rxa6 {[%clk 0:01:47]} 19. Nf3 {[%clk 0:01:54]}  b5 {[%clk 0:01:32]} 20. Nh2 {[%clk 0:01:45]}  Qd8 {[%clk 0:01:16]} 21. Qh6 {[%clk 0:01:41]}  f5 {[%clk 0:01:12]} 22. exf6 {[%clk 0:01:40]}  Nxf6 {[%clk 0:01:11]} 23. Nf3 {[%clk 0:01:40]}  Ne4 {[%clk 0:00:55]} 24. Qf4 {[%clk 0:01:39]}  Rf8 {[%clk 0:00:48]} 25. Qe5 {[%clk 0:01:39]}  Qd6 {[%clk 0:00:48]} 26. Qd4 {[%clk 0:01:36]}  Qb6 {[%clk 0:00:45]} 27. Rad1 {[%clk 0:01:27]}  b4 {[%clk 0:00:45]} 28. Re3 {[%clk 0:01:14]}  bxc3 {[%clk 0:00:44]} 29. bxc3 {[%clk 0:01:14]}  Qxd4 {[%clk 0:00:39]} 30. Nxd4 {[%clk 0:01:04]}  Nxf2 {[%clk 0:00:32]} 31. Rb1 {[%clk 0:01:02]}  Ne4 {[%clk 0:00:30]} 32. c4 {[%clk 0:00:55]}  Nd2 {[%clk 0:00:28]} 33. Rb7 {[%clk 0:00:51]}  Nxc4 {[%clk 0:00:27]} 34. Rxe6 {[%clk 0:00:51]}  Rxe6 {[%clk 0:00:19]} 35. Nxe6 {[%clk 0:00:52]}  Rf6 {[%clk 0:00:17]} 36. Rg7+ {[%clk 0:00:40]}  Kh8 {[%clk 0:00:17]} 37. Re7 {[%clk 0:00:41]}  h6 {[%clk 0:00:18]} 38. Nf4 {[%clk 0:00:21]}  Rd6 {[%clk 0:00:18]} 39. Kf2 {[%clk 0:00:21]}  d4 {[%clk 0:00:18]} 40. Ke2 {[%clk 0:00:20]}  Nb2 {[%clk 0:00:17]} 41. Kd2 {[%clk 0:00:19]}  d3 {[%clk 0:00:17]} 42. Rc7 {[%clk 0:00:13]}  g5 {[%clk 0:00:16]} 43. Nh5 {[%clk 0:00:06]}  Kg8 {[%clk 0:00:16]} 44. g4 {[%clk 0:00:06]}  Kf8 {[%clk 0:00:16]} 45. Ng3 {[%clk 0:00:06]}  Rd4 {[%clk 0:00:15]} 46. Nf5 {[%clk 0:00:05]}  Rxg4 {[%clk 0:00:15]} 47. Rc8+ {[%clk 0:00:06]}  Kf7 {[%clk 0:00:13]} 48. Nxh6+ {[%clk 0:00:07]}  Ke6 {[%clk 0:00:13]} 49. Nxg4 {[%clk 0:00:08]}  Kf5 {[%clk 0:00:11]} 50. Nf2 {[%clk 0:00:08]} 1-0


[Site "https://www.chess.com"]

[Event "Titled Tuesday Blitz May 24 Late 2022"]
[White "Kamsky, Gata"]
[Black "Dubov, Daniil"]
[WhiteFideId "2000024"]
[BlackFideId "24126055"]
[WhiteElo "2645"]
[BlackElo "2791"]
[Result "1/2-1/2"]
[Round "11"]
[TimeControl "180+1"]
[Date "2022.05.24"]
[WhiteClock "0:00:01"]
[BlackClock "0:00:02"]

1. d4 {[%clk 0:03:00]}  Nf6 {[%clk 0:02:58]} 2. Nf3 {[%clk 0:03:00]}  g6 {[%clk 0:02:54]} 3. Bg5 {[%clk 0:02:59]}  Bg7 {[%clk 0:02:54]} 4. c3 {[%clk 0:02:59]}  O-O {[%clk 0:02:52]} 5. Nbd2 {[%clk 0:02:59]}  d5 {[%clk 0:02:53]} 6. e3 {[%clk 0:02:59]}  Nbd7 {[%clk 0:02:54]} 7. Be2 {[%clk 0:02:59]}  Re8 {[%clk 0:02:54]} 8. O-O {[%clk 0:02:58]}  e5 {[%clk 0:02:54]} 9. b4 {[%clk 0:02:55]}  Qe7 {[%clk 0:02:38]} 10. b5 {[%clk 0:02:32]}  h6 {[%clk 0:02:04]} 11. Bh4 {[%clk 0:02:30]}  e4 {[%clk 0:01:50]} 12. Ne1 {[%clk 0:02:29]}  c5 {[%clk 0:01:51]} 13. bxc6 {[%clk 0:02:26]}  bxc6 {[%clk 0:01:52]} 14. Nc2 {[%clk 0:02:23]}  Nb6 {[%clk 0:01:33]} 15. a4 {[%clk 0:02:14]}  g5 {[%clk 0:01:17]} 16. Bg3 {[%clk 0:02:13]}  h5 {[%clk 0:01:14]} 17. a5 {[%clk 0:02:03]}  Nbd7 {[%clk 0:01:07]} 18. Bxh5 {[%clk 0:02:01]}  Nxh5 {[%clk 0:01:00]} 19. Qxh5 {[%clk 0:02:00]}  Ba6 {[%clk 0:01:01]} 20. Rfe1 {[%clk 0:01:34]}  c5 {[%clk 0:01:00]} 21. h4 {[%clk 0:01:14]}  Bd3 {[%clk 0:00:58]} 22. Rec1 {[%clk 0:01:05]}  gxh4 {[%clk 0:00:46]} 23. Bxh4 {[%clk 0:01:04]}  Qe6 {[%clk 0:00:47]} 24. dxc5 {[%clk 0:00:53]}  Bxc2 {[%clk 0:00:40]} 25. Rxc2 {[%clk 0:00:52]}  Nxc5 {[%clk 0:00:40]} 26. Rb1 {[%clk 0:00:45]}  Qc6 {[%clk 0:00:32]} 27. Bg3 {[%clk 0:00:41]}  Nd3 {[%clk 0:00:28]} 28. c4 {[%clk 0:00:38]}  d4 {[%clk 0:00:27]} 29. exd4 {[%clk 0:00:36]}  Bxd4 {[%clk 0:00:28]} 30. Rb5 {[%clk 0:00:35]}  e3 {[%clk 0:00:26]} 31. Rg5+ {[%clk 0:00:34]}  Kf8 {[%clk 0:00:26]} 32. fxe3 {[%clk 0:00:24]}  Bxe3+ {[%clk 0:00:26]} 33. Kh2 {[%clk 0:00:24]}  Bxg5 {[%clk 0:00:25]} 34. Qxg5 {[%clk 0:00:24]}  Qg6 {[%clk 0:00:22]} 35. Qxg6 {[%clk 0:00:21]}  fxg6 {[%clk 0:00:21]} 36. Nf3 {[%clk 0:00:22]}  Rac8 {[%clk 0:00:18]} 37. c5 {[%clk 0:00:22]}  Kg7 {[%clk 0:00:10]} 38. Bd6 {[%clk 0:00:21]}  Nb4 {[%clk 0:00:08]} 39. Rb2 {[%clk 0:00:20]}  Nc6 {[%clk 0:00:05]} 40. Rb7+ {[%clk 0:00:20]}  Kf6 {[%clk 0:00:05]} 41. a6 {[%clk 0:00:20]}  Ke6 {[%clk 0:00:05]} 42. Kg3 {[%clk 0:00:20]}  Kd5 {[%clk 0:00:05]} 43. Kf4 {[%clk 0:00:20]}  Re4+ {[%clk 0:00:05]} 44. Kg5 {[%clk 0:00:20]}  Ra4 {[%clk 0:00:06]} 45. g4 {[%clk 0:00:18]}  Rxa6 {[%clk 0:00:06]} 46. Kxg6 {[%clk 0:00:18]}  Rg8+ {[%clk 0:00:06]} 47. Kf5 {[%clk 0:00:16]}  Ra3 {[%clk 0:00:06]} 48. Ng5 {[%clk 0:00:12]}  Nd4+ {[%clk 0:00:06]} 49. Kf6 {[%clk 0:00:12]}  Ra1 {[%clk 0:00:05]} 50. Nh3 {[%clk 0:00:03]}  Rf1+ {[%clk 0:00:05]} 51. Nf4+ {[%clk 0:00:03]}  Kc6 {[%clk 0:00:03]} 52. Rxa7 {[%clk 0:00:03]}  Rxg4 {[%clk 0:00:02]} 53. Ra6+ {[%clk 0:00:02]}  Kb5 {[%clk 0:00:02]} 54. Rb6+ {[%clk 0:00:03]}  Kc4 {[%clk 0:00:02]} 55. c6 {[%clk 0:00:03]}  Rgxf4+ {[%clk 0:00:01]} 56. Bxf4 {[%clk 0:00:03]}  Rxf4+ {[%clk 0:00:02]} 57. Ke5 {[%clk 0:00:03]}  Rf5+ {[%clk 0:00:02]} 58. Ke4 {[%clk 0:00:03]}  Rc5 {[%clk 0:00:03]} 59. Ra6 {[%clk 0:00:02]}  Nxc6 {[%clk 0:00:02]} 60. Ra4+ {[%clk 0:00:03]}  Nb4 {[%clk 0:00:03]} 61. Ra1 {[%clk 0:00:02]}  Nd5 {[%clk 0:00:02]} 62. Rc1+ {[%clk 0:00:02]}  Nc3+ {[%clk 0:00:03]} 63. Kf4 {[%clk 0:00:03]}  Rd5 {[%clk 0:00:03]} 64. Ra1 {[%clk 0:00:02]}  Rd4+ {[%clk 0:00:04]} 65. Kf5 {[%clk 0:00:03]}  Rd3 {[%clk 0:00:04]} 66. Ke6 {[%clk 0:00:03]}  Kd4 {[%clk 0:00:04]} 67. Kf6 {[%clk 0:00:03]}  Ke3 {[%clk 0:00:04]} 68. Ke5 {[%clk 0:00:03]}  Rd5+ {[%clk 0:00:04]} 69. Ke6 {[%clk 0:00:04]}  Rb5 {[%clk 0:00:04]} 70. Re1+ {[%clk 0:00:04]}  Kd4 {[%clk 0:00:05]} 71. Kf6 {[%clk 0:00:03]}  Rb6+ {[%clk 0:00:05]} 72. Kf5 {[%clk 0:00:04]}  Nd5 {[%clk 0:00:05]} 73. Rd1+ {[%clk 0:00:03]}  Kc4 {[%clk 0:00:05]} 74. Ke5 {[%clk 0:00:03]}  Ne3 {[%clk 0:00:03]} 75. Rd4+ {[%clk 0:00:03]}  Kc3 {[%clk 0:00:03]} 76. Rd8 {[%clk 0:00:03]}  Rb5+ {[%clk 0:00:02]} 77. Ke4 {[%clk 0:00:03]}  Nc4 {[%clk 0:00:03]} 78. Rc8 {[%clk 0:00:02]}  Re5+ {[%clk 0:00:03]} 79. Kf4 {[%clk 0:00:02]}  Re7 {[%clk 0:00:04]} 80. Kf3 {[%clk 0:00:02]}  Kd4 {[%clk 0:00:04]} 81. Rd8+ {[%clk 0:00:02]}  Ke5 {[%clk 0:00:04]} 82. Rc8 {[%clk 0:00:02]}  Rf7+ {[%clk 0:00:04]} 83. Ke2 {[%clk 0:00:01]}  Kd4 {[%clk 0:00:05]} 84. Rd8+ {[%clk 0:00:02]}  Ke4 {[%clk 0:00:05]} 85. Re8+ {[%clk 0:00:02]}  Ne5 {[%clk 0:00:06]} 86. Ke1 {[%clk 0:00:03]}  Ra7 {[%clk 0:00:06]} 87. Ke2 {[%clk 0:00:03]}  Ra2+ {[%clk 0:00:06]} 88. Ke1 {[%clk 0:00:03]}  Kd4 {[%clk 0:00:07]} 89. Kf1 {[%clk 0:00:02]}  Ng4 {[%clk 0:00:07]} 90. Ke1 {[%clk 0:00:02]}  Nh2 {[%clk 0:00:06]} 91. Rd8+ {[%clk 0:00:02]}  Ke5 {[%clk 0:00:06]} 92. Re8+ {[%clk 0:00:02]}  Kf6 {[%clk 0:00:06]} 93. Re2 {[%clk 0:00:02]}  Ra1+ {[%clk 0:00:06]} 94. Kf2 {[%clk 0:00:03]}  Ng4+ {[%clk 0:00:07]} 95. Kf3 {[%clk 0:00:03]}  Ne5+ {[%clk 0:00:07]} 96. Ke4 {[%clk 0:00:02]}  Ke6 {[%clk 0:00:07]} 97. Kd4 {[%clk 0:00:03]}  Ra5 {[%clk 0:00:07]} 98. Kc3 {[%clk 0:00:03]}  Kd5 {[%clk 0:00:06]} 99. Rd2+ {[%clk 0:00:02]}  Kc5 {[%clk 0:00:06]} 100. Rd8 {[%clk 0:00:03]}  Ra3+ {[%clk 0:00:06]} 101. Kd2 {[%clk 0:00:03]}  Nc4+ {[%clk 0:00:06]} 102. Ke2 {[%clk 0:00:03]}  Re3+ {[%clk 0:00:05]} 103. Kf2 {[%clk 0:00:03]}  Re4 {[%clk 0:00:06]} 104. Kf3 {[%clk 0:00:04]}  Rh4 {[%clk 0:00:06]} 105. Ke2 {[%clk 0:00:03]}  Nd6 {[%clk 0:00:05]} 106. Ra8 {[%clk 0:00:03]}  Re4+ {[%clk 0:00:03]} 107. Kd3 {[%clk 0:00:02]}  Re6 {[%clk 0:00:04]} 108. Rd8 {[%clk 0:00:02]}  Nb5 {[%clk 0:00:03]} 109. Rd7 {[%clk 0:00:01]}  Nd6 {[%clk 0:00:02]} 1/2-1/2


[Site "https://www.chess.com"]

[Event "Titled Tuesday Blitz May 24 Late 2022"]
[White "Karttunen, Mika"]
[Black "Sargsyan, Anna M."]
[WhiteFideId "502081"]
[BlackFideId "13308130"]
[WhiteElo "2343"]
[BlackElo "2271"]
[Result "0-1"]
[Round "11"]
[TimeControl "180+1"]
[Date "2022.05.24"]
[WhiteClock "0:00:33"]
[BlackClock "0:00:33"]

1. d4 {[%clk 0:03:00]}  d5 {[%clk 0:02:59]} 2. c4 {[%clk 0:03:00]}  c6 {[%clk 0:02:59]} 3. Nf3 {[%clk 0:02:59]}  Nf6 {[%clk 0:03:00]} 4. Nc3 {[%clk 0:02:59]}  dxc4 {[%clk 0:02:59]} 5. e4 {[%clk 0:02:56]}  b5 {[%clk 0:02:55]} 6. e5 {[%clk 0:02:50]}  Nd5 {[%clk 0:02:54]} 7. Ng5 {[%clk 0:02:45]}  e6 {[%clk 0:02:48]} 8. Nge4 {[%clk 0:02:37]}  Be7 {[%clk 0:02:42]} 9. h4 {[%clk 0:02:36]}  Bb7 {[%clk 0:02:36]} 10. Bg5 {[%clk 0:02:35]}  O-O {[%clk 0:02:33]} 11. Bxe7 {[%clk 0:02:31]}  Qxe7 {[%clk 0:02:33]} 12. Qh5 {[%clk 0:02:15]}  f6 {[%clk 0:02:26]} 13. Nxd5 {[%clk 0:01:47]}  exd5 {[%clk 0:02:25]} 14. Nd6 {[%clk 0:01:45]}  Nd7 {[%clk 0:02:08]} 15. f4 {[%clk 0:01:40]}  fxe5 {[%clk 0:02:06]} 16. fxe5 {[%clk 0:01:40]}  Nf6 {[%clk 0:01:47]} 17. Qg5 {[%clk 0:01:34]}  h6 {[%clk 0:01:29]} 18. Qg6 {[%clk 0:01:27]}  Ne4 {[%clk 0:01:18]} 19. Nxe4 {[%clk 0:01:11]}  dxe4 {[%clk 0:01:19]} 20. Qxe4 {[%clk 0:01:05]}  Qb4+ {[%clk 0:01:17]} 21. Kd1 {[%clk 0:01:03]}  Qxb2 {[%clk 0:01:16]} 22. Rb1 {[%clk 0:01:02]}  Qxa2 {[%clk 0:01:05]} 23. e6 {[%clk 0:00:55]}  Rae8 {[%clk 0:00:55]} 24. Be2 {[%clk 0:00:54]}  c5 {[%clk 0:00:47]} 25. d5 {[%clk 0:00:41]}  Bxd5 {[%clk 0:00:43]} 26. Qxd5 {[%clk 0:00:41]}  Qxb1+ {[%clk 0:00:43]} 27. Kd2 {[%clk 0:00:42]}  Qf5 {[%clk 0:00:32]} 28. Qxf5 {[%clk 0:00:33]}  Rxf5 {[%clk 0:00:33]} 29. Bg4 {[%clk 0:00:33]}  Rf4 {[%clk 0:00:31]} 30. Bh3 {[%clk 0:00:33]}  g5 {[%clk 0:00:31]} 31. hxg5 {[%clk 0:00:33]}  hxg5 {[%clk 0:00:32]} 32. g3 {[%clk 0:00:33]}  Rd4+ {[%clk 0:00:32]} 33. Ke3 {[%clk 0:00:33]}  g4 {[%clk 0:00:33]} 0-1


[Site "https://www.chess.com"]

[Event "Titled Tuesday Blitz May 24 Late 2022"]
[White "Keymer, Vincent"]
[Black "Hansen, Eric"]
[WhiteFideId "12940690"]
[BlackFideId "2606771"]
[WhiteElo "2548"]
[BlackElo "2568"]
[Result "1-0"]
[Round "11"]
[TimeControl "180+1"]
[Date "2022.05.24"]
[WhiteClock "0:00:05"]
[BlackClock "0:00:04"]

1. Nf3 {[%clk 0:03:00]}  d5 {[%clk 0:02:58]} 2. e3 {[%clk 0:03:01]}  Bg4 {[%clk 0:02:54]} 3. c4 {[%clk 0:03:00]}  e6 {[%clk 0:02:53]} 4. cxd5 {[%clk 0:02:54]}  exd5 {[%clk 0:02:52]} 5. Qb3 {[%clk 0:02:48]}  Bc8 {[%clk 0:02:21]} 6. Nc3 {[%clk 0:02:29]}  Nf6 {[%clk 0:02:22]} 7. d4 {[%clk 0:02:22]}  c6 {[%clk 0:02:10]} 8. Bd3 {[%clk 0:02:13]}  Bd6 {[%clk 0:02:09]} 9. O-O {[%clk 0:01:50]}  O-O {[%clk 0:02:09]} 10. a3 {[%clk 0:01:40]}  Re8 {[%clk 0:02:08]} 11. Qc2 {[%clk 0:01:38]}  Qe7 {[%clk 0:02:03]} 12. Nd2 {[%clk 0:01:06]}  Ng4 {[%clk 0:01:17]} 13. h3 {[%clk 0:00:51]}  Nh2 {[%clk 0:01:17]} 14. Re1 {[%clk 0:00:20]}  Qg5 {[%clk 0:01:17]} 15. Kh1 {[%clk 0:00:17]}  Qh4 {[%clk 0:01:17]} 16. Kg1 {[%clk 0:00:07]}  Re6 {[%clk 0:00:43]} 17. Nf1 {[%clk 0:00:02]}  Nxf1 {[%clk 0:00:25]} 18. Rxf1 {[%clk 0:00:03]}  Rf6 {[%clk 0:00:11]} 19. e4 {[%clk 0:00:03]}  Bxh3 {[%clk 0:00:04]} 20. e5 {[%clk 0:00:02]}  Bg4 {[%clk 0:00:02]} 21. f3 {[%clk 0:00:01]}  Bc7 {[%clk 0:00:02]} 22. Bxh7+ {[%clk 0:00:02]}  Qxh7 {[%clk 0:00:01]} 23. Qxh7+ {[%clk 0:00:03]}  Kxh7 {[%clk 0:00:02]} 24. exf6 {[%clk 0:00:03]}  Be6 {[%clk 0:00:02]} 25. fxg7 {[%clk 0:00:03]}  Kxg7 {[%clk 0:00:03]} 26. Be3 {[%clk 0:00:03]}  Nd7 {[%clk 0:00:04]} 27. Kf2 {[%clk 0:00:04]}  b5 {[%clk 0:00:04]} 28. Rae1 {[%clk 0:00:05]}  Nb6 {[%clk 0:00:05]} 29. Rh1 {[%clk 0:00:05]}  a5 {[%clk 0:00:05]} 30. Bh6+ {[%clk 0:00:05]}  Kg8 {[%clk 0:00:05]} 31. Rh4 {[%clk 0:00:05]}  b4 {[%clk 0:00:05]} 32. Bg5 {[%clk 0:00:05]}  bxc3 {[%clk 0:00:04]} 33. Bf6 {[%clk 0:00:05]} 1-0


[Site "https://www.chess.com"]